fUST/lending_fUST_20251203
["ID","MTS","AMOUNT","RATE_DAILY","PERIOD"]
[395969968,1764742250437,-195.99267393,0.00022339,48]
[395969970,1764742250447,-153.73620466,0.00022362,48]
[395969972,1764742250456,-1134.56276227,0.00022384,54]
[395969974,1764742250465,-1541.81,0.000224,14]
[395969976,1764742250474,-3633.02,0.000224,7]
[395969978,1764742250483,-1460.0,0.00022423,2]
[395969980,1764742250493,-500.0,0.0002245,30]
[395969982,1764742250503,-293.19153379,0.00022465,2]
[395969984,1764742250512,-300.0,0.00022466,2]
[395969986,1764742250521,-750.0,0.00022466,2]
[395969988,1764742250530,-1134.56276227,0.00022476,57]
[395969990,1764742250539,-1028.55098428,0.000225,2]
[395969992,1764742250549,-1134.56276227,0.00022568,61]
[395969994,1764742250559,-4233.30635485,0.00022579,2]
[395969996,1764742250568,-1134.56276227,0.00022659,65]
[395969998,1764742250577,-71428.56,0.000227,3]
[395970000,1764742250586,-1134.56276227,0.00022751,69]
[395970002,1764742250595,-195.99267393,0.00022752,63]
[395970004,1764742250605,-153.73620466,0.00022782,63]
[395970006,1764742250616,-300.0,0.00022806,2]
[395970008,1764742250626,-1134.56276227,0.00022843,72]
[395970010,1764742250635,-1134.56276227,0.00022935,76]
[395970012,1764742250644,-1560.0,0.00022971,2]
[395970014,1764742250654,-605821.1,0.00023,2]
[395970016,1764742250666,-3300.97,0.00023,7]
[395970018,1764742250676,-3017.76,0.00023,2]
[395970019,1764742250686,-346.97492544,0.00023,3]
[395970022,1764742250695,-346.97492544,0.00023,3]
[395970024,1764742250705,-450.0,0.00023014,2]
[395970025,1764742250715,-850.0,0.00023014,2]
[395970028,1764742250735,-301.8292211,0.00023014,2]
[395970030,1764742250748,-301.8292211,0.00023014,2]
[395970032,1764742250758,-301.8292211,0.00023014,2]
[395970033,1764742250767,-301.8292211,0.00023014,2]
[395970035,1764742250776,-1134.56276227,0.00023026,80]
[395970037,1764742250786,-182.75963472,0.00023095,20]
[395970039,1764742250796,-1134.56276227,0.00023118,83]
[395970041,1764742250806,-195.99267393,0.00023165,79]
[395970044,1764742250817,-1000.0,0.00023177,10]
[395970046,1764742250826,-1000.0,0.00023177,10]
[395970048,1764742250836,-579.0,0.00023177,10]
[395970050,1764742250847,-153.73620466,0.00023203,79]
[395970052,1764742250856,-1134.56276227,0.0002321,87]
[395970054,1764742250865,-195.99267391,0.00023241,30]
[395970056,1764742250874,-181.997,0.00023288,30]
[395970058,1764742250884,-1134.56276227,0.00023301,91]
[395970060,1764742250894,-2000.0,0.00023322,7]
[395970062,1764742250904,-168.87625805,0.00023343,30]
[395970064,1764742250913,-153.73620463,0.00023343,30]
[395970066,1764742250923,-1134.56276227,0.00023393,95]
[395970068,1764742250933,-1134.56276227,0.00023485,98]
[395970070,1764742250942,-1660.0,0.00023519,2]
[395970072,1764742250951,-600.0,0.00023562,2]
[395970074,1764742250961,-950.0,0.00023562,2]
[395970076,1764742250971,-1134.56276227,0.00023577,102]
[395970078,1764742250981,-195.99267393,0.00023578,94]
[395970080,1764742250990,-1541.81,0.000236,14]
[395970082,1764742250999,-3633.02,0.000236,7]
[395970084,1764742251008,-153.73620466,0.00023623,94]
[395970086,1764742251017,-739.9947825,0.0002366,2]
[395970088,1764742251027,-1134.56276227,0.00023668,106]
[395970090,1764742251037,-153.44797008,0.00023671,30]
[395970092,1764742251046,-555.32426589,0.000237,14]
[395970094,1764742251055,-2348.94104329,0.000237,30]
[395970096,1764742251064,-1134.56276227,0.0002376,110]
[395970098,1764742251074,-150.5,0.0002387,120]
[395970100,1764742251083,-150.5,0.0002388,120]
[395970102,1764742251092,-150.5,0.0002389,120]
[395970103,1764742251103,-3017.76,0.000239,2]
[395970106,1764742251112,-294.79198529,0.00023973,11]
[395970108,1764742251122,-1729.1458359,0.00024,2]
[395970109,1764742251131,-463.87678032,0.00024,2]
[395970111,1764742251141,-605821.1,0.00024,2]
[395970114,1764742251151,-22041.18079494,0.00024,60]
[395970116,1764742251161,-372.0,0.00024,2]
[395970118,1764742251170,-3300.97,0.00024,7]
[395970120,1764742251180,-165.0,0.00024,7]
[395970122,1764742251190,-1760.0,0.00024067,2]
[395970124,1764742251199,-750.0,0.0002411,2]
[395970126,1764742251209,-1050.0,0.0002411,2]
[395970128,1764742251219,-182.75963472,0.00024138,24]
[395970130,1764742251229,-414.0,0.00024138,2]
[395970132,1764742251238,-509999.5031042,0.00024142,2]
[395970134,1764742251247,-2000.0,0.00024435,7]
[395970136,1764742251256,-160.0,0.00024493,3]
[395970138,1764742251266,-244.0,0.00024521,13]
[395970140,1764742251276,-1860.0,0.00024615,2]
[395970142,1764742251286,-156348.41417372,0.0002465,2]
[395970144,1764742251295,-512.43535798,0.0002465,2]
[395970146,1764742251305,-500.0,0.00024657,2]
[395970148,1764742251314,-568.76206218,0.00024657,2]
[395970150,1764742251324,-500.0,0.00024658,120]
[395970152,1764742251333,-900.0,0.00024658,2]
[395970154,1764742251343,-150.0,0.00024658,2]
[395970156,1764742251353,-1150.0,0.00024658,2]
[395970158,1764742251362,-200.0,0.00024658,2]
[395970160,1764742251371,-380.0,0.00024658,2]
[395970162,1764742251381,-761.0,0.00024658,2]
[395970164,1764742251391,-16779.82466471,0.00024774,2]
[395970166,1764742251401,-160.0,0.00024786,4]
[395970168,1764742251411,-761.0,0.00024795,2]
[395970170,1764742251420,-414809.491047,0.000248,2]
[395970172,1764742251430,-4894.0,0.000249,7]
[395970174,1764742251439,-639109.328619,0.000249,2]
[395970176,1764742251449,-761.0,0.00024932,2]
[395970178,1764742251458,-1190.829489,0.0002498,5]
[395970180,1764742251468,-1082.57244795,0.00025,2]
[395970182,1764742251477,-1989.70890454,0.00025,2]
[395970184,1764742251487,-2667.47651969,0.00025,2]
[395970186,1764742251497,-10364.0,0.00025,2]
[395970188,1764742251508,-150.0,0.00025,2]
[395970190,1764742251517,-500.0,0.00025,2]
[395970192,1764742251527,-600.0,0.00025,2]
[395970194,1764742251536,-756.31808711,0.00025,2]
[395970196,1764742251545,-194.08435417,0.00025,2]
[395970198,1764742251555,-221.0,0.00025,3]
[395970200,1764742251564,-10370.10330622,0.00025,2]
[395970202,1764742251573,-1000.0,0.00025,2]
[395970204,1764742251583,-300.0,0.00025,30]
[395970206,1764742251593,-155.82750951,0.00025,120]
[395970208,1764742251604,-337.96746693,0.00025,120]
[395970210,1764742251613,-521.55285585,0.00025,120]
[395970212,1764742251623,-435.74688004,0.00025,120]
[395970214,1764742251633,-5365.82097357,0.00025,2]
[395970216,1764742251643,-500.0,0.00025,120]
[395970218,1764742251653,-1254.09651953,0.00025,2]
[395970220,1764742251663,-1541.81,0.00025,14]
[395970222,1764742251674,-3633.02,0.00025,7]
[395970224,1764742251684,-1000.0,0.00025,5]
[395970226,1764742251695,-245.0,0.00025068,14]
[395970228,1764742251705,-761.0,0.00025069,2]
[395970229,1764742251717,-160.0,0.00025079,5]
[395970231,1764742251727,-3017.76,0.000251,2]
[395970233,1764742251737,-1960.0,0.00025163,2]
[395970235,1764742251747,-347.14330596,0.00025181,28]
[395970237,1764742251756,-577.44506462,0.000252,5]
[395970239,1764742251766,-605821.1,0.000252,2]
[395970241,1764742251775,-250.0,0.00025205,2]
[395970243,1764742251784,-1166.83523146,0.00025205,2]
[395970245,1764742251794,-1250.0,0.00025205,2]
[395970247,1764742251804,-761.0,0.00025206,2]
[395970249,1764742251815,-4233.30635485,0.00025258,2]
[395970251,1764742251825,-3300.97,0.000253,7]
[395970253,1764742251834,-256.725949,0.00025342,2]
[395970255,1764742251844,-761.0,0.00025343,2]
[395970257,1764742251854,-165.0,0.00025358,7]
[395970259,1764742251863,-160.0,0.00025372,6]
[395970261,1764742251872,-900.0,0.00025469,3]
[395970263,1764742251882,-761.0,0.0002548,2]
[395970265,1764742251891,-1000.0,0.00025494,10]
[395970267,1764742251901,-1000.0,0.00025494,10]
[395970269,1764742251911,-1000.0,0.00025494,10]
[395970271,1764742251920,-1000.0,0.000255,2]
[395970273,1764742251929,-164.7869226,0.00025516,2]
[395970275,1764742251939,-2000.0,0.00025548,7]
[395970277,1764742251948,-300.0,0.00025611,2]
[395970279,1764742251957,-246.0,0.00025616,14]
[395970281,1764742251966,-761.0,0.00025617,2]
[395970283,1764742251976,-798.93242004,0.0002566,2]
[395970285,1764742251985,-160.0,0.00025666,7]
[395970287,1764742251994,-2060.0,0.00025711,2]
[395970289,1764742252004,-350.0,0.00025753,2]
[395970291,1764742252017,-1350.0,0.00025753,2]
[395970293,1764742252032,-761.0,0.00025754,2]
[395970295,1764742252042,-418.1,0.000258,20]
[395970297,1764742252051,-761.0,0.00025891,2]
[395970299,1764742252061,-160.0,0.00025959,8]
[395970301,1764742252071,-528.37547684,0.00026,2]
[395970303,1764742252080,-19900.0,0.00026,2]
[395970305,1764742252090,-161.0,0.00026,5]
[395970307,1764742252100,-1000.0,0.00026,2]
[395970309,1764742252110,-442.33231182,0.00026,120]
[395970311,1764742252119,-600.0,0.00026,120]
[395970313,1764742252129,-39615.18962323,0.00026,10]
[395970315,1764742252138,-3017.76,0.00026,2]
[395970317,1764742252147,-761.0,0.00026028,2]
[395970319,1764742252156,-194.05994961,0.0002616,2]
[395970321,1764742252166,-247.0,0.00026164,14]
[395970323,1764742252175,-761.0,0.00026165,2]
[395970326,1764742252185,-1541.81,0.000262,14]
[395970327,1764742252194,-3633.02,0.000262,7]
[395970330,1764742252204,-160.0,0.00026252,9]
[395970331,1764742252213,-2160.0,0.00026259,2]
[395970334,1764742252222,-150.5,0.0002628,120]
[395970335,1764742252231,-150.5,0.0002629,120]
[395970338,1764742252242,-450.0,0.00026301,2]
[395970340,1764742252252,-1450.0,0.00026301,2]
[395970342,1764742252261,-761.0,0.00026302,2]
[395970343,1764742252271,-605821.1,0.000264,2]
[395970346,1764742252280,-3300.97,0.000264,7]
[395970347,1764742252290,-761.0,0.00026439,2]
[395970349,1764742252299,-200.0,0.0002654,14]
[395970352,1764742252308,-160.0,0.00026545,10]
[395970354,1764742252318,-761.0,0.00026576,2]
[395970356,1764742252327,-2000.0,0.00026661,7]
[395970358,1764742252336,-1449.716796,0.00026676,2]
[395970360,1764742252346,-248.0,0.00026712,14]
[395970361,1764742252355,-761.0,0.00026713,2]
[395970364,1764742252365,-2260.0,0.00026807,2]
[395970366,1764742252374,-160.0,0.00026838,11]
[395970368,1764742252384,-550.0,0.00026849,2]
[395970370,1764742252393,-300.0,0.00026849,2]
[395970372,1764742252402,-1550.0,0.00026849,2]
[395970373,1764742252412,-761.0,0.0002685,2]
[395970375,1764742252421,-761.0,0.00026987,2]
[395970378,1764742252430,-3017.76,0.00027,2]
[395970380,1764742252441,-201.0,0.00027,5]
[395970381,1764742252450,-498.0,0.00027,14]
[395970382,1764742252458,-600.0,0.00027123,2]
[395970383,1764742252468,-1014.4264363,0.00027123,3]
[395970384,1764742252477,-761.0,0.00027124,2]
[395970385,1764742252486,-160.0,0.00027131,12]
[395970386,1764742252495,-414.0,0.00027138,2]
[395970388,1764742252503,-173.41353962,0.00027142,2]
[395970390,1764742252512,-248.0,0.0002726,14]
[395970392,1764742252522,-761.0,0.00027261,2]
[395970394,1764742252532,-550.0,0.000273,120]
[395970396,1764742252542,-2360.0,0.00027355,2]
[395970398,1764742252551,-150.0,0.0002739,2]
[395970406,1764742252611,-566.32778161,0.0002739,7]
[395970408,1764742252621,-297.48326853,0.00027397,120]
[395970410,1764742252631,-500.0,0.00027397,2]
[395970412,1764742252640,-1000.0,0.00027397,2]
[395970414,1764742252650,-1000.0,0.00027397,2]
[395970416,1764742252660,-1000.0,0.00027397,2]
[395970418,1764742252674,-1000.0,0.00027397,2]
[395970420,1764742252684,-1000.0,0.00027397,2]
[395970422,1764742252694,-1000.0,0.00027397,2]
[395970424,1764742252703,-1000.0,0.00027397,2]
[395970426,1764742252711,-881.74047167,0.00027397,2]
[395970428,1764742252721,-151.0,0.00027397,2]
[395970430,1764742252730,-151.0,0.00027397,2]
[395970432,1764742252738,-223.36616704,0.00027397,2]
[395970434,1764742252748,-500.0,0.00027397,120]
[395970436,1764742252757,-650.0,0.00027397,5]
[395970438,1764742252767,-810.82257057,0.00027397,5]
[395970440,1764742252776,-11552.7518651,0.00027397,30]
[395970442,1764742252785,-272.034253,0.00027397,7]
[395970444,1764742252795,-272.034253,0.00027397,7]
[395970446,1764742252804,-272.034253,0.00027397,7]
[395970448,1764742252813,-272.034253,0.00027397,7]
[395970450,1764742252823,-272.034253,0.00027397,7]
[395970452,1764742252831,-272.034253,0.00027397,7]
[395970454,1764742252841,-272.034253,0.00027397,7]
[395970456,1764742252852,-272.034253,0.00027397,7]
[395970458,1764742252861,-272.034253,0.00027397,7]
[395970460,1764742252870,-272.034253,0.00027397,7]
[395970462,1764742252879,-272.034253,0.00027397,7]
[395970464,1764742252888,-272.034253,0.00027397,7]
[395970466,1764742252897,-272.034253,0.00027397,7]
[395970468,1764742252906,-272.034253,0.00027397,7]
[395970470,1764742252915,-272.034253,0.00027397,7]
[395970472,1764742252924,-272.034253,0.00027397,7]
[395970474,1764742252933,-272.034253,0.00027397,7]
[395970475,1764742252941,-272.034253,0.00027397,7]
[395970478,1764742252952,-272.034253,0.00027397,7]
[395970480,1764742252961,-272.034256,0.00027397,7]
[395970482,1764742252970,-195.57915905,0.00027397,2]
[395970484,1764742252980,-500.0,0.00027397,5]
[395970486,1764742252989,-150.0,0.00027397,5]
[395970488,1764742252998,-150.0,0.00027397,5]
[395970490,1764742253007,-1650.0,0.00027397,5]
[395970492,1764742253016,-150.0,0.00027397,5]
[395970494,1764742253025,-761.0,0.00027398,2]
[395970496,1764742253034,-186.52487181,0.000274,4]
[395970498,1764742253044,-186.52487181,0.000274,4]
[395970500,1764742253053,-186.52487181,0.000274,4]
[395970502,1764742253063,-186.52,0.000274,4]
[395970504,1764742253072,-158.2635276,0.000274,4]
[395970506,1764742253082,-158.2635276,0.000274,4]
[395970508,1764742253091,-158.2635276,0.000274,4]
[395970510,1764742253101,-158.2635276,0.000274,4]
[395970512,1764742253110,-158.2635276,0.000274,4]
[395970514,1764742253120,-158.2635276,0.000274,4]
[395970516,1764742253129,-158.2635276,0.000274,4]
[395970518,1764742253139,-158.2635276,0.000274,4]
[395970520,1764742253149,-158.2635276,0.000274,4]
[395970522,1764742253158,-158.2635276,0.000274,4]
[395970524,1764742253167,-158.26,0.000274,4]
[395970526,1764742253177,-152.5432038,0.000274,4]
[395970528,1764742253186,-152.5432038,0.000274,4]
[395970530,1764742253195,-152.5432038,0.000274,4]
[395970532,1764742253204,-152.5432038,0.000274,4]
[395970534,1764742253214,-152.5432038,0.000274,4]
[395970536,1764742253223,-152.5432038,0.000274,4]
[395970538,1764742253232,-152.5432038,0.000274,4]
[395970540,1764742253241,-152.5432038,0.000274,4]
[395970542,1764742253251,-152.5432038,0.000274,4]
[395970544,1764742253261,-152.5432038,0.000274,4]
[395970546,1764742253270,-152.5432038,0.000274,4]
[395970548,1764742253278,-152.5432038,0.000274,4]
[395970550,1764742253288,-152.5432038,0.000274,4]
[395970552,1764742253299,-152.5432038,0.000274,4]
[395970554,1764742253308,-152.5432038,0.000274,4]
[395970556,1764742253317,-152.5432038,0.000274,4]
[395970558,1764742253327,-152.5432038,0.000274,4]
[395970560,1764742253336,-152.5432038,0.000274,4]
[395970562,1764742253347,-152.54,0.000274,4]
[395970564,1764742253358,-338.13743508,0.000274,4]
[395970566,1764742253367,-338.13743508,0.000274,4]
[395970568,1764742253377,-338.13743508,0.000274,4]
[395970570,1764742253386,-338.13743508,0.000274,4]
[395970572,1764742253395,-338.13743508,0.000274,4]
[395970574,1764742253406,-338.13743508,0.000274,4]
[395970576,1764742253415,-338.13743508,0.000274,4]
[395970578,1764742253424,-338.13743508,0.000274,4]
[395970580,1764742253434,-338.13743508,0.000274,4]
[395970582,1764742253443,-338.13743508,0.000274,4]
[395970584,1764742253452,-338.13743508,0.000274,4]
[395970586,1764742253461,-338.13743508,0.000274,4]
[395970588,1764742253471,-338.13743508,0.000274,4]
[395970590,1764742253480,-338.13743508,0.000274,4]
[395970592,1764742253489,-338.13743508,0.000274,4]
[395970594,1764742253498,-338.13743508,0.000274,4]
[395970596,1764742253508,-338.13743508,0.000274,4]
[395970598,1764742253517,-338.13743508,0.000274,4]
[395970600,1764742253526,-338.13743508,0.000274,4]
[395970602,1764742253535,-338.13,0.000274,4]
[395970604,1764742253545,-163.00314977,0.000274,4]
[395970606,1764742253554,-163.00314977,0.000274,4]
[395970608,1764742253563,-163.00314977,0.000274,4]
[395970610,1764742253572,-163.00314977,0.000274,4]
[395970612,1764742253582,-163.00314977,0.000274,4]
[395970614,1764742253591,-163.00314977,0.000274,4]
[395970616,1764742253600,-163.00314977,0.000274,4]
[395970618,1764742253609,-163.00314977,0.000274,4]
[395970620,1764742253619,-163.00314977,0.000274,4]
[395970622,1764742253628,-163.00314977,0.000274,4]
[395970624,1764742253636,-163.0,0.000274,4]
[395970626,1764742253646,-209.18737554,0.000274,4]
[395970628,1764742253655,-209.18737554,0.000274,4]
[395970630,1764742253669,-209.18737554,0.000274,4]
[395970632,1764742253678,-209.18737554,0.000274,4]
[395970634,1764742253687,-209.18737554,0.000274,4]
[395970636,1764742253696,-209.18737554,0.000274,4]
[395970638,1764742253707,-209.18737554,0.000274,4]
[395970640,1764742253716,-209.18737554,0.000274,4]
[395970642,1764742253725,-209.18737554,0.000274,4]
[395970644,1764742253736,-209.18737554,0.000274,4]
[395970646,1764742253747,-209.18737554,0.000274,4]
[395970648,1764742253756,-209.18737554,0.000274,4]
[395970650,1764742253766,-209.18737554,0.000274,4]
[395970652,1764742253775,-209.18737554,0.000274,4]
[395970654,1764742253784,-209.18737554,0.000274,4]
[395970656,1764742253793,-209.18737554,0.000274,4]
[395970658,1764742253802,-209.18737554,0.000274,4]
[395970659,1764742253812,-209.18737554,0.000274,4]
[395970662,1764742253821,-209.18737554,0.000274,4]
[395970663,1764742253831,-209.18,0.000274,4]
[395970665,1764742253840,-605821.1,0.000274,2]
[395970667,1764742253850,-900.0,0.000274,120]
[395970669,1764742253860,-160.0,0.00027425,13]
[395970672,1764742253870,-45822.76629087,0.000275,2]
[395970674,1764742253879,-3300.97,0.000275,7]
[395970675,1764742253889,-500.0,0.00027534,2]
[395970678,1764742253898,-151.0,0.00027534,2]
[395970680,1764742253908,-151.0,0.00027534,2]
[395970682,1764742253918,-761.0,0.00027535,2]
[395970684,1764742253928,-1541.81,0.000276,14]
[395970686,1764742253937,-3633.02,0.000276,7]
[395970688,1764742253946,-857.87005759,0.0002766,2]
[395970690,1764742253955,-500.0,0.00027671,2]
[395970692,1764742253966,-151.0,0.00027671,2]
[395970694,1764742253975,-151.0,0.00027671,2]
[395970696,1764742253985,-761.0,0.00027672,2]
[395970698,1764742253995,-160.0,0.00027718,14]
[395970700,1764742254005,-498.0,0.00027741,14]
[395970702,1764742254014,-2000.0,0.00027774,7]
[395970704,1764742254024,-1000.0,0.00027777,5]
[395970706,1764742254033,-500.0,0.00027808,2]
[395970708,1764742254042,-240.2314962,0.00027808,2]
[395970710,1764742254052,-194.32612016,0.00027808,2]
[395970712,1764742254061,-299.0,0.00027808,14]
[395970714,1764742254071,-779.05253212,0.00027809,2]
[395970716,1764742254080,-1000.0,0.00027831,5]
[395970718,1764742254089,-2460.0,0.00027903,2]
[395970720,1764742254098,-4233.30635485,0.00027937,2]
[395970722,1764742254107,-500.0,0.00027945,2]
[395970724,1764742254116,-1000.0,0.00027945,5]
[395970726,1764742254126,-750.0,0.00027945,5]
[395970728,1764742254136,-250.0,0.00027945,5]
[395970730,1764742254145,-1750.0,0.00027945,5]
[395970732,1764742254155,-250.0,0.00027945,5]
[395970734,1764742254165,-15279.79682743,0.00028,2]
[395970736,1764742254175,-2160.87531792,0.00028,2]
[395970738,1764742254184,-341.52840446,0.00028,2]
[395970740,1764742254194,-160.0,0.00028011,15]
[395970742,1764742254203,-498.0,0.00028015,14]
[395970744,1764742254213,-1000.0,0.00028044,30]
[395970746,1764742254222,-1000.0,0.00028044,30]
[395970748,1764742254231,-1000.0,0.00028044,30]
[395970749,1764742254240,-715.0,0.00028044,30]
[395970752,1764742254250,-500.0,0.00028082,2]
[395970753,1764742254259,-500.0,0.00028219,2]
[395970755,1764742254269,-250.0,0.00028219,5]
[395970757,1764742254278,-500.0,0.00028232,10]
[395970759,1764742254287,-500.0,0.00028232,10]
[395970761,1764742254296,-498.0,0.00028289,14]
[395970763,1764742254306,-160.0,0.00028304,16]
[395970765,1764742254315,-209.3567028,0.00028304,5]
[395970767,1764742254324,-500.0,0.00028356,2]
[395970769,1764742254334,-280.0,0.00028356,29]
[395970771,1764742254343,-800.0,0.000284,120]
[395970773,1764742254354,-174.01142482,0.00028417,2]
[395970775,1764742254363,-1852.95999955,0.00028451,2]
[395970777,1764742254373,-500.0,0.00028493,2]
[395970780,1764742254383,-850.0,0.00028493,5]
[395970782,1764742254392,-1331.10425798,0.00028493,5]
[395970784,1764742254401,-350.0,0.00028493,5]
[395970785,1764742254411,-835.83218084,0.00028493,5]
[395970787,1764742254420,-350.0,0.00028493,5]
[395970789,1764742254429,-605821.1,0.000285,2]
[395970792,1764742254439,-296751.40231684,0.000285,7]
[395970794,1764742254449,-498.0,0.00028563,14]
[395970796,1764742254457,-500.0,0.0002863,2]
[395970798,1764742254466,-200.0,0.000287,120]
[395970800,1764742254475,-200.0,0.000287,120]
[395970802,1764742254485,-179.9460162,0.00028706,2]
[395970804,1764742254495,-4000.0,0.0002876,5]
[395970806,1764742254504,-500.0,0.00028767,2]
[395970808,1764742254513,-2076.67,0.00028767,7]
[395970810,1764742254522,-2076.67,0.00028767,7]
[395970812,1764742254531,-2076.67,0.00028767,7]
[395970813,1764742254540,-2076.67,0.00028767,7]
[395970815,1764742254549,-2076.67,0.00028767,7]
[395970817,1764742254558,-2076.67,0.00028767,7]
[395970819,1764742254567,-2076.67,0.00028767,7]
[395970821,1764742254577,-2076.67,0.00028767,7]
[395970823,1764742254588,-2076.67,0.00028767,7]
[395970825,1764742254598,-2076.67,0.00028767,7]
[395970827,1764742254607,-2076.67,0.00028767,7]
[395970829,1764742254616,-2076.67,0.00028767,7]
[395970831,1764742254624,-2076.67,0.00028767,7]
[395970833,1764742254635,-2076.67,0.00028767,7]
[395970835,1764742254645,-2076.67,0.00028767,7]
[395970837,1764742254654,-2076.67,0.00028767,7]
[395970839,1764742254666,-2076.67,0.00028767,7]
[395970841,1764742254675,-2076.67,0.00028767,7]
[395970843,1764742254685,-2076.67,0.00028767,7]
[395970845,1764742254694,-2076.67,0.00028767,7]
[395970847,1764742254703,-2076.67,0.00028767,7]
[395970849,1764742254712,-2076.67,0.00028767,7]
[395970851,1764742254721,-2076.67,0.00028767,7]
[395970853,1764742254730,-2076.69787511,0.00028767,7]
[395970855,1764742254740,-256.725949,0.00028767,60]
[395970857,1764742254749,-171.55346634,0.000288,7]
[395970859,1764742254758,-498.0,0.00028841,14]
[395970861,1764742254768,-1922.80398052,0.00028887,7]
[395970863,1764742254778,-500.0,0.00028904,2]
[395970865,1764742254788,-262.0,0.00028904,31]
[395970867,1764742254798,-277.16,0.0002899,120]
[395970869,1764742254808,-887.87122926,0.00029,2]
[395970871,1764742254818,-507.34802855,0.00029,7]
[395970873,1764742254828,-2397.45716778,0.00029,10]
[395970875,1764742254837,-200.0,0.00029,120]
[395970877,1764742254846,-1541.81,0.00029,14]
[395970879,1764742254854,-3633.02,0.00029,7]
[395970881,1764742254862,-2506.683266,0.00029,2]
[395970883,1764742254871,-500.0,0.00029041,2]
[395970884,1764742254880,-950.0,0.00029041,5]
[395970886,1764742254888,-350.0,0.00029041,5]
[395970888,1764742254896,-450.0,0.00029041,5]
[395970890,1764742254903,-450.0,0.00029041,5]
[395970892,1764742254913,-1010.417267,0.00029041,120]
[395970894,1764742254922,-449.89694,0.000291,120]
[395970896,1764742254931,-205.12877,0.000291,120]
[395970898,1764742254940,-500.0,0.00029178,2]
[395970900,1764742254950,-500.0,0.00029315,2]
[395970902,1764742254959,-500.0,0.00029452,2]
[395970904,1764742254968,-245.0,0.00029452,34]
[395970906,1764742254977,-263.08312583,0.000295,120]
[395970908,1764742254987,-1500.0,0.000295,2]
[395970910,1764742254996,-500.0,0.00029589,2]
[395970912,1764742255005,-307.8398572,0.00029589,30]
[395970914,1764742255015,-1050.0,0.00029589,5]
[395970916,1764742255024,-550.0,0.00029589,5]
[395970918,1764742255034,-550.0,0.00029589,5]
[395970920,1764742255043,-916.80769513,0.0002966,2]
[395970922,1764742255052,-500.0,0.00029726,2]
[395970924,1764742255061,-273.99656,0.000298,120]
[395970926,1764742255071,-350.7104,0.000298,120]
[395970928,1764742255080,-420.17242,0.000298,120]
[395970930,1764742255089,-304.81145,0.000298,120]
[395970932,1764742255099,-449.89694,0.000298,120]
[395970934,1764742255108,-385.68,0.000298,30]
[395970936,1764742255117,-52443.60432586,0.000298,2]
[395970938,1764742255126,-500.0,0.00029863,2]
[395970940,1764742255135,-450.0,0.00029863,5]
[395970942,1764742255145,-207.0,0.0002999,8]
[395970943,1764742255154,-500.0,0.0003,2]
[395970945,1764742255162,-150.0,0.0003,2]
[395970947,1764742255171,-738507.54650035,0.0003,2]
[395970949,1764742255180,-518.62010368,0.0003,2]
[395970951,1764742255190,-269.1765217,0.0003,2]
[395970953,1764742255199,-1000.0,0.0003,2]
[395970955,1764742255208,-165.46,0.0003,5]
[395970957,1764742255216,-323.0,0.0003,2]
[395970959,1764742255225,-328474.38754948,0.0003,2]
[395970961,1764742255235,-508.06157583,0.0003,4]
[395970963,1764742255243,-81916.67224694,0.0003,2]